bitfinex-derivatives/quotes_ETHF0:USTF0_20250629
["timestamp","ask_amount","ask_price","bid_price","bid_amount"]
[1751224545421,1.64225,2435.1,2434.6,2.45549086]
[1751224545623,0.65708,2434.4,2434.3,2.45549086]
[1751224546432,0.65704,2434.6,2434.3,7.77554594]
[1751224546731,0.65703,2434.6,2434.5,2.11225508]
[1751224547227,0.65706,2434.5,2434.4,1.3707]
[1751224553532,0.65705,2434.6,2434.4,1.3707]
[1751224553932,0.65705,2434.6,2434.5,0.6628]
[1751224556232,3.2078,2434.7,2434.5,0.6628]
[1751224556431,0.657,2434.7,2434.6,4.6464]
[1751224558026,0.65696,2434.9,2434.7,0.65699]
[1751224558229,0.65696,2434.9,2434.8,4.4622674]
[1751224559130,0.65696,2434.9,2434.8,1.4386]
[1751224561539,0.65696,2434.9,2434.8,2.09558]
[1751224562540,6.92994,2435.0,2434.8,2.09558]
[1751224562740,6.92994,2435.0,2434.9,2.77723]
[1751224562741,6.273,2435.0,2434.9,2.77723]
[1751224562940,6.92992,2435.0,2434.9,2.1203]
[1751224563837,6.92992,2435.0,2434.9,5.98505]
[1751224564239,6.273,2435.0,2434.9,5.98505]
[1751224565141,6.92992,2435.0,2434.9,5.3281]
[1751224567345,6.92992,2435.0,2434.9,3.9307]
[1751224568841,0.65692,2435.0,2434.9,3.9307]
[1751224570844,0.65691,2435.1,2434.9,3.9307]
[1751224571043,0.65691,2435.1,2434.9,5.2569]
[1751224571245,0.65691,2435.1,2435.0,1.3262]
[1751224571445,6.92889,2435.2,2435.0,1.3262]
[1751224572448,6.92889,2435.2,2435.0,1.9831]
[1751224572946,0.6569,2435.1,2435.0,1.9831]
[1751224573147,6.92888,2435.2,2435.0,1.9831]
[1751224573448,0.6569,2435.1,2435.0,1.9831]
[1751224573651,6.92889,2435.2,2435.1,0.6569]
[1751224575350,6.92889,2435.2,2435.0,0.65691]
[1751224575852,0.6569,2435.1,2434.9,5.27583]
[1751224576053,0.6569,2435.1,2434.9,6.64383]
[1751224576244,6.272,2435.2,2435.0,0.65692]
[1751224576451,0.6569,2435.1,2434.9,6.64383]
[1751224576755,6.92888,2435.2,2435.0,0.65691]
[1751224577255,0.6569,2435.1,2435.0,0.65691]
[1751224577455,0.6569,2435.1,2434.9,6.64383]
[1751224579059,6.92888,2435.2,2435.0,0.6569]
[1751224579259,6.95688,2435.2,2435.0,0.6569]
[1751224580359,0.6569,2435.1,2435.0,0.6569]
[1751224583163,6.998,2435.3,2435.2,0.65687]
[1751224583363,6.998,2435.3,2435.2,3.86467]
[1751224583958,0.698,2435.3,2435.2,3.86467]
[1751224588665,1.35484,2435.3,2435.2,3.2078]
[1751224589164,1.35484,2435.3,2435.2,3.86467]
[1751224591168,6.299,2435.5,2435.4,0.65682]
[1751224591367,6.9695,2435.5,2435.4,0.65682]
[1751224591668,7.62629,2435.5,2435.4,0.65682]
[1751224592167,6.9695,2435.5,2435.4,0.65682]
[1751224592468,7.62629,2435.5,2435.4,0.65682]
[1751224593668,6.9695,2435.5,2435.4,0.65682]
[1751224594170,7.6263,2435.5,2435.3,1.35992]
[1751224594469,0.65682,2435.4,2435.3,1.35992]
[1751224594767,6.9695,2435.5,2435.3,0.65682]
[1751224595269,0.65682,2435.4,2435.3,0.65682]
[1751224595469,7.6263,2435.5,2435.3,0.65682]
[1751224595768,7.6263,2435.5,2435.2,6.9004674]
[1751224595769,7.6263,2435.5,2435.4,0.65682]
[1751224596371,6.95578,2435.6,2435.5,0.65679]
[1751224596571,6.299,2435.6,2435.5,0.65679]
[1751224598274,0.6748,2435.7,2435.6,0.65676]
[1751224598875,1.33153,2435.7,2435.6,0.65676]
[1751224599074,1.33153,2435.7,2435.5,1.35767]
[1751224601878,0.6748,2435.7,2435.6,0.65676]
[1751224602377,1.33153,2435.7,2435.6,0.65676]
[1751224602777,0.6748,2435.7,2435.6,1.88616431]
[1751224608376,0.7306,2435.9,2435.8,0.65671]
[1751224608678,0.7125,2436.0,2435.9,0.65668]
[1751224610581,0.7125,2436.0,2435.9,1.37528]
[1751224612288,6.298,2436.1,2436.0,0.65665]
[1751224613484,6.95465,2436.1,2435.9,2.75087]
[1751224613679,0.65665,2436.0,2435.9,1.22940431]
[1751224613878,0.65665,2436.0,2435.9,1.88608431]
[1751224614081,0.65665,2436.0,2435.9,0.65668]
[1751224614580,0.65665,2436.0,2435.8,5.09389431]
[1751224614782,0.7075,2435.9,2435.8,5.09389431]
[1751224615189,0.65664,2436.1,2435.9,0.65666]
[1751224615482,1.36414,2436.1,2435.9,0.65666]
[1751224616482,0.65665,2436.0,2435.9,0.65666]
[1751224616985,0.65665,2436.0,2435.9,3.86446]
[1751224617483,1.36413,2436.1,2436.0,0.65665]
[1751224617986,1.36413,2436.1,2435.9,3.86447]
[1751224619386,1.36413,2436.1,2436.0,0.65665]
[1751224621388,1.36413,2436.1,2435.9,3.86446]
[1751224623287,1.36413,2436.1,2436.0,0.65665]
[1751224623490,0.7075,2436.1,2436.0,0.65665]
[1751224623788,1.36413,2436.1,2436.0,0.65665]
[1751224625389,1.36413,2436.1,2436.0,3.86445]
[1751224626690,1.36413,2436.1,2436.0,0.65665]
[1751224627291,1.36413,2436.1,2436.0,3.86445]
[1751224628992,0.7075,2436.1,2436.0,3.86445]
[1751224629994,0.7075,2436.1,2436.0,6.8881174]
[1751224630195,0.65656,2436.4,2436.0,7.46087171]
[1751224630395,0.7275,2436.3,2436.2,3.6802674]
[1751224633099,0.7275,2436.3,2436.2,4.90967171]
[1751224633499,0.7275,2436.3,2436.2,3.6802674]
[1751224634098,0.7275,2436.3,2436.2,4.90967171]
[1751224636702,1.38407,2436.3,2436.2,4.25307171]
[1751224637001,1.38407,2436.3,2436.2,1.88600431]
[1751224637197,1.38407,2436.3,2436.2,1.22940431]
[1751224639204,0.6566,2436.2,2436.1,5.49856806]
[1751224639906,1.38409,2436.3,2436.1,5.49856806]
[1751224642107,1.38409,2436.3,2436.2,0.6566]
[1751224642308,0.7275,2436.3,2436.2,0.6566]
[1751224644509,0.7275,2436.3,2436.2,2.29074806]
[1751224644804,1.38293,2436.5,2436.4,0.65655]
[1751224645507,0.7264,2436.5,2436.4,0.65655]
[1751224646208,1.4073,2436.5,2436.4,0.65655]
[1751224647410,1.4073,2436.5,2436.3,1.88637327]
[1751224647810,0.65655,2436.4,2436.3,1.88637327]
[1751224648108,0.65655,2436.4,2436.3,1.22981327]
[1751224648715,0.65655,2436.4,2436.3,1.88638327]
[1751224649211,2.06384,2436.5,2436.3,1.88638327]
[1751224649402,0.65655,2436.4,2436.3,1.88638327]
[1751224650011,0.65655,2436.4,2436.3,1.22981327]
[1751224650809,2.06384,2436.5,2436.3,1.22981327]
[1751224651611,2.06384,2436.5,2436.4,0.65655]
[1751224651913,0.65655,2436.4,2436.3,1.88637327]
[1751224652209,1.33743,2436.5,2436.4,0.65655]
[1751224652413,1.33743,2436.5,2436.3,1.22981327]
[1751224652614,0.6809,2436.5,2436.4,0.65655]
[1751224653416,1.33742,2436.5,2436.4,0.65655]
[1751224654515,1.33742,2436.5,2436.3,1.88638327]
[1751224654715,0.65655,2436.4,2436.3,1.88638327]
[1751224654916,0.65655,2436.4,2436.3,5.09418327]
[1751224655718,0.65655,2436.4,2436.3,4.43761327]
[1751224658418,0.65655,2436.4,2436.3,3.2078]
[1751224660013,0.65657,2436.3,2436.2,1.63414806]
[1751224660214,0.65657,2436.3,2436.2,4.84194806]
[1751224661319,0.65657,2436.3,2436.2,3.2078]
[1751224662420,0.65657,2436.3,2436.2,3.8644]
[1751224664221,0.65657,2436.3,2436.2,0.6566]
[1751224664421,0.6809,2436.5,2436.3,0.65657]
[1751224664626,1.33744,2436.5,2436.4,1.23068069]
[1751224683735,1.33744,2436.5,2436.4,1.88723069]
[1751224683937,1.33744,2436.5,2436.4,1.23068069]
[1751224693138,1.33744,2436.5,2436.4,1.88723069]
[1751224694240,0.6809,2436.5,2436.4,1.88723069]
[1751224697041,1.33742,2436.5,2436.4,1.88723069]
[1751224697244,1.33742,2436.5,2436.4,0.65655]
[1751224697544,0.6809,2436.5,2436.4,2.29745759]
[1751224698544,1.33742,2436.5,2436.4,0.65655]
[1751224699249,0.6809,2436.5,2436.4,0.65655]
[1751224701950,1.33742,2436.5,2436.4,0.65655]
[1751224702249,1.33742,2436.5,2436.3,7.61833093]
[1751224703551,0.65655,2436.4,2436.3,7.61833093]
[1751224703752,0.65655,2436.4,2436.3,6.96178093]
[1751224703950,0.65655,2436.4,2436.3,7.61835093]
[1751224704450,1.33744,2436.5,2436.3,7.61835093]
[1751224706449,0.65655,2436.4,2436.3,7.61835093]
[1751224707553,1.33744,2436.5,2436.3,7.61835093]
[1751224708152,0.65655,2436.4,2436.3,7.61835093]
[1751224709052,0.6809,2436.5,2436.3,7.61835093]
[1751224709053,1.33743,2436.5,2436.3,7.61835093]
[1751224709452,1.33743,2436.5,2436.4,0.65655]
[1751224710654,1.33743,2436.5,2436.3,7.61833093]
[1751224710852,1.33743,2436.5,2436.4,0.65655]
[1751224711654,1.33743,2436.5,2436.3,7.61833093]
[1751224712854,1.33743,2436.5,2436.3,4.41053093]
[1751224713149,0.6809,2436.5,2436.4,0.65655]
[1751224714257,0.6809,2436.5,2436.4,2.29745759]
[1751224719665,1.33742,2436.5,2436.4,2.29745759]
[1751224719962,1.33742,2436.5,2436.4,1.64090759]
[1751224721854,1.33742,2436.5,2436.4,4.84870759]
[1751224722661,0.6809,2436.5,2436.4,5.50525759]
[1751224725568,6.276,2436.7,2436.6,0.65649]
[1751224725764,6.93248,2436.7,2436.5,1.88757769]
[1751224727368,6.93248,2436.7,2436.6,0.65649]
[1751224728970,6.93248,2436.7,2436.6,1.88756769]
[1751224729667,6.93248,2436.7,2436.6,1.23107769]
[1751224736271,6.93248,2436.7,2436.5,1.88758769]
[1751224736566,6.93248,2436.7,2436.6,0.65649]
[1751224736771,6.93248,2436.7,2436.5,1.88757769]
[1751224737175,0.65649,2436.6,2436.5,1.88757769]
[1751224743479,0.65649,2436.6,2436.5,1.23107769]
[1751224745280,2.76956334,2436.6,2436.5,1.23107769]
[1751224750284,2.76956334,2436.6,2436.4,5.50525759]
[1751224750484,0.6965,2436.5,2436.4,5.50525759]
[1751224751178,0.6965,2436.5,2436.4,2.29745759]
[1751224751384,0.6965,2436.5,2436.4,5.50525759]
[1751224751882,1.35302,2436.5,2436.4,4.84870759]
[1751224753080,1.35302,2436.5,2436.4,5.50525759]
[1751224754882,1.35302,2436.5,2436.4,2.29745759]
[1751224755484,1.35302,2436.5,2436.4,1.64090759]
[1751224763001,1.35302,2436.5,2436.4,2.29745759]
[1751224764299,0.6965,2436.5,2436.4,2.29745759]
[1751224764801,0.6965,2436.5,2436.4,4.41053093]
[1751224769404,1.35302,2436.5,2436.4,4.41053093]
[1751224769703,0.6965,2436.5,2436.4,4.41053093]
[1751224780315,1.35302,2436.5,2436.4,1.64090759]
[1751224781724,1.35302,2436.5,2436.4,2.29745759]
[1751224783020,1.35302,2436.5,2436.4,1.64090759]
[1751224784421,1.35302,2436.5,2436.4,2.29745759]
[1751224785420,0.6965,2436.5,2436.4,2.29745759]
[1751224792125,1.35302,2436.5,2436.4,2.29745759]
[1751224792324,0.6965,2436.5,2436.4,2.29745759]
[1751224794726,1.35302,2436.5,2436.4,2.29745759]
[1751224797531,0.6965,2436.5,2436.4,2.29745759]
[1751224798729,1.35302,2436.5,2436.4,2.29745759]
[1751224800225,1.35302,2436.5,2436.4,1.64090759]
[1751224801025,1.35302,2436.5,2436.4,2.29745759]
[1751224803831,0.6965,2436.5,2436.4,2.29745759]
[1751224805431,1.35302,2436.5,2436.4,2.29745759]
[1751224806434,1.35302,2436.5,2436.4,1.64090759]
[1751224807334,0.6965,2436.5,2436.4,2.29745759]
[1751224810132,2.78287334,2436.8,2436.4,1.64090759]
[1751224810436,7.6381,2436.8,2436.6,3.34433006]
[1751224810636,1.3681,2436.8,2436.7,0.65646]
[1751224810832,0.6983,2436.8,2436.7,1.88771672]
[1751224811037,0.6983,2436.8,2436.7,2.60111672]
[1751224811334,3.2078,2436.9,2436.8,0.65644]
[1751224811534,3.86421,2436.9,2436.8,0.65644]
[1751224811735,3.2078,2436.9,2436.8,0.65644]
[1751224812037,3.86421,2436.9,2436.7,2.60110672]
[1751224812936,0.65644,2436.8,2436.7,2.60110672]
[1751224813137,0.65644,2436.8,2436.7,2.35430759]
[1751224813335,0.65644,2436.8,2436.7,1.94399708]
[1751224813537,0.65646,2436.7,2436.6,1.64090759]
[1751224820741,2.76953334,2436.7,2436.6,1.64090759]
[1751224825049,0.65646,2436.7,2436.6,1.64090759]
[1751224827158,0.65646,2436.7,2436.6,1.22959672]
[1751224828752,0.65646,2436.7,2436.6,1.64090759]
[1751224833253,0.65646,2436.7,2436.6,2.29739759]
[1751224833453,0.65646,2436.7,2436.6,1.64090759]
[1751224834854,0.65646,2436.7,2436.6,3.75398093]
[1751224842258,0.65646,2436.7,2436.6,1.64090759]
[1751224848663,0.65646,2436.7,2436.6,2.29739759]
[1751224848866,0.65646,2436.7,2436.6,1.64090759]
[1751224849165,0.65646,2436.7,2436.6,2.33300759]
[1751224849360,1.39105,2436.8,2436.7,0.65646]
[1751224849561,1.39105,2436.8,2436.7,3.75398093]
[1751224850964,1.39105,2436.8,2436.7,4.41045093]
[1751224851158,0.65643,2436.9,2436.7,3.75398093]
[1751224851462,0.65643,2436.9,2436.8,3.35853946]
[1751224853064,0.65643,2436.9,2436.8,4.01497946]
[1751224853267,0.65643,2436.9,2436.8,3.35853946]
[1751224854662,0.65643,2436.9,2436.8,1.92293946]
[1751224854862,3.50080334,2436.9,2436.8,1.23083946]
[1751224855464,4.84330334,2436.9,2436.8,1.23083946]
[1751224859968,2.73023,2436.9,2436.8,1.23083946]
[1751224860168,4.84330334,2436.9,2436.8,1.23083946]
[1751224872379,1.38773,2436.9,2436.8,1.23083946]
[1751224879188,0.65644,2436.8,2436.7,1.64090759]
[1751224917906,0.7313,2436.9,2436.7,1.64090759]
[1751224918107,0.6564,2437.0,2436.8,2.11307334]
[1751224918303,0.6564,2437.0,2436.9,1.23110275]
[1751224918508,0.6564,2437.0,2436.9,3.25221275]
[1751224919199,0.6564,2437.0,2436.9,2.59580275]
[1751224919607,6.92337,2437.1,2436.9,2.59580275]
[1751224920511,0.65639,2437.0,2436.9,2.59580275]
[1751224921012,6.92338,2437.1,2436.9,2.59580275]
[1751224923909,6.267,2437.1,2436.9,2.59580275]
[1751224924115,0.65639,2437.0,2436.9,1.23110275]
[1751224924310,1.38789,2437.0,2436.9,1.23110275]
[1751224927718,0.7315,2437.0,2436.9,1.23110275]
[1751224928519,0.7315,2437.0,2436.9,1.88751275]
[1751224928719,0.7315,2437.0,2436.9,1.23110275]
[1751224931923,0.7315,2437.0,2436.9,1.88751275]
[1751224932523,0.7315,2437.0,2436.9,0.65641]
[1751224932824,0.7315,2437.0,2436.8,5.07220093]
[1751224933023,0.7315,2437.0,2436.8,6.46050093]
[1751224933424,6.267,2437.1,2436.9,1.88700853]
[1751224933620,6.267,2437.1,2436.9,3.27530853]
[1751224933924,6.92336,2437.1,2436.9,3.27530853]
[1751224934120,7.64716,2437.1,2436.9,3.27530853]
[1751224934320,6.9908,2437.1,2436.9,3.27530853]
[1751224934624,6.9908,2437.1,2437.0,1.23059853]
[1751224936324,7.64716,2437.1,2437.0,1.23059853]
[1751224937425,6.9908,2437.1,2437.0,1.88698853]
[1751224937726,7.64716,2437.1,2437.0,1.23059853]
[1751224939027,6.9908,2437.1,2437.0,1.23059853]
[1751224939328,7.64716,2437.1,2437.0,1.23059853]
[1751224940626,1.38016,2437.1,2437.0,1.23059853]
[1751224952030,0.7238,2437.1,2437.0,1.23059853]
[1751224953236,1.38016,2437.1,2437.0,1.23059853]
[1751224964045,0.7238,2437.1,2437.0,1.88698853]
[1751224965248,1.38016,2437.1,2437.0,1.23059853]
[1751224967954,0.7238,2437.1,2437.0,1.23059853]
[1751224969553,1.38016,2437.1,2437.0,1.23059853]
[1751224970355,0.7238,2437.1,2437.0,1.88698853]
[1751224970854,1.38016,2437.1,2437.0,1.23059853]
[1751224973951,2.77926,2437.1,2437.0,1.23059853]
[1751224974755,3.46086,2437.1,2437.0,1.23059853]
[1751224975552,0.65639,2437.0,2436.9,1.23059853]
[1751224975854,2.76946334,2437.0,2436.9,1.23059853]
[1751224976458,2.11307334,2437.0,2436.9,1.88701853]
[1751224978759,2.76946334,2437.0,2436.9,1.23059853]
[1751224979259,2.11307334,2437.0,2436.9,1.23059853]
[1751224979660,2.11307334,2437.0,2436.9,1.88701853]
[1751224985666,2.06177,2437.1,2436.9,1.88701853]
[1751224985862,4.17484334,2437.1,2436.9,1.88701853]
[1751224988669,3.51847334,2437.1,2436.9,1.88701853]
[1751224991072,4.17484334,2437.1,2436.9,1.88701853]
[1751224991371,0.65639,2437.0,2436.9,1.23059853]
[1751224995976,4.17485334,2437.1,2436.9,1.88701853]
[1751224998076,0.65639,2437.0,2436.9,1.23059853]
[1751225001082,6.257,2437.2,2436.9,3.75398093]
[1751225001280,6.257,2437.2,2437.1,0.65636]
[1751225002181,3.43279334,2437.3,2437.1,0.65636]
[1751225002482,9.68979334,2437.3,2437.1,0.65636]
[1751225002681,0.65633,2437.2,2437.0,2.55853144]
[1751225002882,0.65633,2437.2,2437.0,2.55855144]
[1751225003082,0.6807,2437.1,2437.0,2.55855144]
[1751225006381,0.6807,2437.1,2437.0,1.88705144]
[1751225006783,2.79377334,2437.1,2437.0,1.88705144]
[1751225009581,3.45013334,2437.1,2437.0,1.23066144]
[1751225010585,2.79377334,2437.1,2437.0,1.23066144]
[1751225010784,3.45013334,2437.1,2437.0,1.23066144]
[1751225010985,2.79377334,2437.1,2437.0,1.23066144]
[1751225011384,2.79377334,2437.1,2437.0,1.88705144]
[1751225012586,2.79377334,2437.1,2437.0,1.23066144]
[1751225013587,2.79377334,2437.1,2437.0,1.88705144]
[1751225015591,2.79377334,2437.1,2437.0,1.23066144]
[1751225015892,2.79377334,2437.1,2437.0,1.88705144]
[1751225016894,3.45013334,2437.1,2437.0,1.23066144]
[1751225017394,2.79377334,2437.1,2437.0,1.88705144]
[1751225019900,2.79377334,2437.1,2437.0,1.23066144]
[1751225020699,2.79377334,2437.1,2437.0,1.88705144]
[1751225020999,2.79377334,2437.1,2437.0,1.23066144]
[1751225023997,3.45013334,2437.1,2437.0,1.23066144]
[1751225024403,0.65639,2437.0,2436.9,1.23066144]
[1751225024604,4.15566334,2437.0,2436.9,1.23066144]
[1751225026506,3.49927334,2437.0,2436.9,1.23066144]
[1751225026705,2.11307334,2437.0,2436.9,1.88708144]
[1751225026905,2.76946334,2437.0,2436.9,1.23066144]
[1751225027102,4.23816334,2437.0,2436.9,1.23066144]
[1751225027397,3.58177334,2437.0,2436.9,1.23066144]
[1751225027598,4.23816334,2437.0,2436.9,1.23066144]
[1751225028406,3.58177334,2437.0,2436.9,1.23066144]
[1751225030509,3.58177334,2437.0,2436.9,1.88708144]
[1751225030811,3.58177334,2437.0,2436.9,1.23066144]
[1751225032409,4.23816334,2437.0,2436.9,1.23066144]
[1751225033310,2.76946334,2437.0,2436.9,1.23066144]
[1751225035212,2.11307334,2437.0,2436.9,1.88708144]
[1751225035811,2.11307334,2437.0,2436.9,1.23066144]
[1751225039114,2.76946334,2437.0,2436.9,1.23066144]
[1751225043318,2.11307334,2437.0,2436.9,1.23066144]
[1751225043512,2.11307334,2437.0,2436.9,1.88708144]
[1751225043813,0.6807,2437.1,2437.0,0.65639]
[1751225044014,3.2078,2437.2,2437.0,0.65639]
[1751225044320,3.2078,2437.2,2437.1,2.76943334]
[1751225044816,3.2078,2437.2,2437.1,4.20883334]
[1751225045417,6.90931,2437.3,2437.1,4.20883334]
[1751225045921,6.253,2437.3,2437.2,0.65633]
[1751225046716,6.90931,2437.3,2437.2,0.65633]
[1751225046917,6.90931,2437.3,2437.1,3.55247334]
[1751225046918,6.90931,2437.3,2437.1,4.20881334]
[1751225048113,2.45887818,2437.6,2437.2,1.23066144]
[1751225048318,12.73407306,2437.8,2437.6,0.65623]
[1751225048319,2.45887818,2437.7,2437.6,0.65623]
[1751225048518,2.45887818,2437.7,2437.6,2.04123]
[1751225048713,2.45887818,2437.7,2437.6,2.70393]
[1751225050322,11.91967818,2437.8,2437.7,0.6562]
[1751225050519,11.91967818,2437.8,2437.6,2.70391]
[1751225051019,11.91967818,2437.8,2437.7,0.6562]
[1751225051719,11.91967818,2437.8,2437.7,2.76927334]
[1751225052520,9.4608,2437.8,2437.7,2.76927334]
[1751225053120,10.11697,2437.8,2437.7,2.11307334]
[1751225053520,10.11697,2437.8,2437.6,4.86407334]
[1751225053722,10.11697,2437.8,2437.6,5.52030334]
[1751225053920,9.4608,2437.8,2437.6,5.52030334]
[1751225054120,10.11698,2437.8,2437.6,5.52030334]
[1751225054622,9.4608,2437.8,2437.6,5.52030334]
[1751225054824,9.4608,2437.8,2437.7,0.6562]
[1751225056022,6.253,2437.8,2437.7,0.6562]
[1751225057716,0.7118,2437.9,2437.8,0.65617]
[1751225057913,11.57287334,2438.3,2438.0,0.6561]
[1751225058114,0.65608,2438.2,2438.0,2.11307334]
[1751225058323,0.65608,2438.2,2438.0,2.76918334]
[1751225059019,12.29997334,2438.3,2438.0,2.76918334]
[1751225059218,0.65607,2438.2,2437.9,0.7216]
[1751225059420,2.11307334,2438.2,2438.0,0.65611]
[1751225059718,13.85781049,2438.3,2438.0,0.65611]
[1751225060618,0.65607,2438.2,2438.0,0.65611]
[1751225060924,0.65607,2438.2,2437.9,1.37773]
[1751225061525,13.85780049,2438.3,2438.0,0.65612]
[1751225061724,10.65000049,2438.3,2438.0,0.65612]
[1751225061926,13.85780049,2438.3,2438.0,0.65612]
[1751225063425,0.65607,2438.2,2437.9,0.7216]
[1751225063723,0.6561,2438.1,2437.8,2.09166]
[1751225063921,2.10728,2438.2,2437.9,0.65614]
[1751225064425,5.12213049,2438.2,2437.9,0.65614]
[1751225065228,0.65609,2438.1,2437.9,0.65614]
[1751225065627,0.6621,2438.0,2437.9,0.65614]
[1751225066520,3.67695049,2438.0,2437.7,3.2078]
[1751225066827,5.01029049,2438.0,2437.7,3.86398]
[1751225067526,0.65615,2437.9,2437.7,3.86398]
[1751225068226,5.01028049,2438.0,2437.7,3.86398]
[1751225069729,0.65615,2437.9,2437.7,3.86398]
[1751225070532,0.65615,2437.9,2437.7,3.2078]
[1751225070732,0.65617,2437.8,2437.7,3.2078]
[1751225071431,0.65616,2437.9,2437.7,3.2078]
[1751225071731,2.03956,2437.9,2437.7,3.2078]
[1751225073335,0.65617,2437.8,2437.7,3.2078]
[1751225074434,2.03956,2437.9,2437.7,3.2078]
[1751225074631,2.03956,2437.9,2437.7,3.864]
[1751225076437,2.03956,2437.9,2437.7,3.2078]
[1751225077436,0.65617,2437.8,2437.7,3.2078]
[1751225078437,2.03957,2437.9,2437.7,3.2078]
[1751225079336,0.65617,2437.8,2437.7,4.43846144]
[1751225080037,2.03956,2437.9,2437.7,4.43846144]
[1751225080634,0.65617,2437.8,2437.7,4.43846144]
[1751225081737,2.76721765,2437.8,2437.7,4.43846144]
[1751225083339,2.76721765,2437.8,2437.7,3.2078]
[1751225084439,2.76721765,2437.8,2437.7,4.84870759]
[1751225084839,2.11104765,2437.8,2437.7,4.84870759]
[1751225085641,2.11104765,2437.8,2437.7,2.29710759]
[1751225087041,2.76721765,2437.8,2437.7,1.64090759]
[1751225088647,2.11104765,2437.8,2437.7,2.29710759]
[1751225090843,2.76721765,2437.8,2437.7,2.29710759]
[1751225091543,2.76721765,2437.8,2437.7,1.64090759]
[1751225091946,2.11104765,2437.8,2437.7,1.64090759]
[1751225092446,2.11104765,2437.8,2437.7,2.29710759]
[1751225094250,2.11104765,2437.9,2437.7,2.29710759]
[1751225094549,2.76719765,2437.9,2437.7,2.29710759]
[1751225095552,0.65618,2437.8,2437.7,2.29710759]
[1751225096251,2.76721765,2437.9,2437.7,2.29710759]
[1751225096754,0.65618,2437.8,2437.7,1.64090759]
[1751225097550,0.65618,2437.8,2437.7,2.29710759]
[1751225098050,0.65618,2437.8,2437.7,0.6562]
[1751225099352,2.76721765,2437.9,2437.7,0.6562]
[1751225099552,2.76721765,2437.9,2437.8,1.64069151]
[1751225102556,0.65617,2437.9,2437.8,1.64069151]
[1751225121185,0.65617,2437.9,2437.8,2.29687151]
[1751225121886,0.65617,2437.9,2437.8,1.64069151]
[1751225137000,9.71834765,2438.0,2437.6,1.64069151]
[1751225137204,2.69018,2437.8,2437.7,1.23056913]
[1751225137402,5.89798,2437.8,2437.7,1.23056913]
[1751225138396,8.00902765,2437.8,2437.7,1.23056913]
[1751225138597,0.6562,2437.7,2437.6,1.23056913]
[1751225147805,4.5605,2437.8,2437.6,1.23056913]
[1751225148105,4.5605,2437.8,2437.7,2.11104765]
[1751225148404,3.864,2437.8,2437.7,2.11104765]
[1751225148807,3.864,2437.8,2437.7,3.44164765]
[1751225149102,0.6562,2437.8,2437.7,3.44164765]
[1751225149404,0.6562,2437.8,2437.7,4.67221678]
[1751225150407,0.6562,2437.8,2437.7,4.55800059]
[1751225152505,0.6562,2437.8,2437.7,2.56116913]
[1751225152805,0.6562,2437.8,2437.7,1.23056913]
[1751225159008,0.6562,2437.8,2437.7,2.66426913]
[1751225160906,0.6562,2437.8,2437.7,1.23056913]
[1751225164514,2.76724765,2437.8,2437.7,1.23056913]
[1751225174027,3.43544765,2437.8,2437.7,1.23056913]
[1751225197851,0.65616,2437.9,2437.7,3.34161678]
[1751225198051,0.65616,2437.9,2437.8,1.23033885]
[1751225198352,0.65616,2437.9,2437.8,1.89173885]
[1751225200454,12.94868765,2438.0,2437.8,1.89173885]
[1751225200653,12.29254765,2438.0,2437.8,3.24543885]
[1751225200853,0.65615,2437.9,2437.8,3.24543885]
[1751225201852,9.08474765,2438.0,2437.8,3.24543885]
[1751225201853,9.74088765,2438.0,2437.8,3.24543885]
[1751225202552,0.65615,2437.9,2437.8,3.24543885]
[1751225203154,9.74087765,2438.0,2437.8,3.24543885]
[1751225204054,0.65615,2437.9,2437.8,3.24543885]
[1751225205149,9.74088765,2438.0,2437.8,3.24543885]
[1751225205556,0.65615,2437.9,2437.8,3.24543885]
[1751225208558,9.74087765,2438.0,2437.8,3.24543885]
[1751225210159,9.74087765,2438.0,2437.8,3.90160885]
[1751225210160,3.48887765,2438.0,2437.8,3.90160885]
[1751225210358,6.252,2437.9,2437.8,6.0126565]
[1751225210557,6.252,2437.9,2437.8,4.6589565]
[1751225215155,6.252,2437.9,2437.8,3.42861765]
[1751225215359,6.252,2437.9,2437.8,4.65806698]
[1751225216258,6.252,2437.9,2437.8,4.00189698]
[1751225216463,6.90815,2437.9,2437.8,4.00189698]
[1751225216960,6.252,2437.9,2437.8,4.00189698]
[1751225217361,6.90815,2437.9,2437.8,4.00189698]
[1751225217960,6.252,2437.9,2437.8,4.00189698]
[1751225218161,6.252,2437.9,2437.8,1.89084933]
[1751225218461,6.90815,2437.9,2437.8,1.89084933]
[1751225221065,6.252,2437.9,2437.8,1.89084933]
[1751225221765,6.90815,2437.9,2437.8,1.89084933]
[1751225221966,6.90815,2437.9,2437.8,1.22944933]
[1751225222463,6.252,2437.9,2437.8,1.22944933]
[1751225222659,6.90815,2437.9,2437.8,1.22944933]
[1751225223169,1.33133,2438.0,2437.8,1.88562933]
[1751225223360,3.2078,2438.1,2438.0,0.65612]
[1751225223665,3.2078,2438.4,2438.0,1.22944933]
[1751225223868,3.2078,2438.4,2438.2,0.65605]
[1751225224061,3.2078,2438.4,2438.3,0.65604]
[1751225224260,3.2078,2438.4,2438.3,2.76708765]
[1751225224661,3.2078,2438.4,2438.3,4.15218765]
[1751225224858,0.6709,2438.5,2438.4,0.65601]
[1751225225069,0.6709,2438.5,2438.3,7.35996765]
[1751225225668,0.6709,2438.5,2438.4,0.65601]
[1751225226665,0.6709,2438.5,2438.3,8.58941698]
[1751225227262,0.6709,2438.5,2438.3,7.35996765]
[1751225234063,0.6709,2438.5,2438.3,4.15216765]
[1751225234368,0.6709,2438.5,2438.3,7.35996765]
[1751225236869,0.6709,2438.5,2438.3,4.15216765]
[1751225237269,0.6709,2438.5,2438.3,7.35996765]
[1751225237669,0.6709,2438.5,2438.3,5.24892]
[1751225237874,0.6709,2438.5,2438.3,5.97486765]
[1751225239473,1.3269,2438.5,2438.3,5.97486765]
[1751225241372,3.43794765,2438.5,2438.3,5.31884765]
[1751225242275,3.43794765,2438.5,2438.3,5.97488765]
[1751225243672,1.3269,2438.5,2438.3,2.76708765]
[1751225243875,1.3269,2438.5,2438.3,5.97488765]